bitfinex/quotes_SOLUSD_20250118
["timestamp","ask_amount","ask_price","bid_price","bid_amount"]
[1737198432933,31.97858605,241.87,241.77,31.97858605]
[1737198433666,4.1339,241.91,241.76,4.1662]
[1737198433667,31.97858605,241.85,241.76,4.1662]
[1737198433961,31.97858605,241.85,241.77,23.776884]
[1737198434635,31.97858605,241.81,241.76,0.03]
[1737198435332,55.75547005,241.77,241.76,0.0001]
[1737198435551,31.97858605,241.77,241.76,0.0001]
[1737198435949,20.0,241.77,241.76,0.0001]
[1737198436160,51.97858605,241.77,241.62,33.63758605]
[1737198436338,4.1355,241.81,241.64,31.97858605]
[1737198436534,31.97858605,241.75,241.64,31.97858605]
[1737198436745,31.97858605,241.84,241.75,23.776884]
[1737198437048,4.1337,241.91,241.72,31.97858605]
[1737198437049,31.97858605,241.82,241.72,31.97858605]
[1737198437245,31.97858605,241.8,241.71,23.776884]
[1737198438059,20.0,241.83,241.76,0.03]
[1737198438282,31.97858605,241.77,241.76,0.03]
[1737198439045,31.97858605,241.89,241.76,0.03]
[1737198439228,31.97858605,241.85,241.76,0.03]
[1737198439663,31.97858605,241.81,241.76,0.03]
[1737198439852,31.97858605,241.87,241.76,0.03]
[1737198440059,31.97858605,241.85,241.76,23.806884]
[1737198440242,14.4657,241.95,241.78,23.776884]
[1737198440243,31.97858605,241.87,241.78,23.776884]
[1737198440448,31.97858605,241.89,241.78,23.776884]
[1737198440751,31.97858605,241.85,241.76,0.03]
[1737198440952,31.97858605,241.89,241.79,55.75547005]
[1737198441168,31.97858605,241.89,241.81,23.776884]
[1737198442072,0.063,242.01,241.88,23.776884]
[1737198442248,31.97858605,241.99,241.92,23.776884]
[1737198443286,31.97858605,241.97,241.87,36.11298605]
[1737198443672,0.063,242.01,241.96,31.97858605]
[1737198443873,31.97858605,242.19,242.09,20.0]
[1737198444053,16.515094,242.22,242.15,20.0]
[1737198444255,0.063,242.26,242.15,20.0]
[1737198444256,31.97858605,242.25,242.15,23.776884]
[1737198444581,31.97858605,242.18,242.08,1.5632]
[1737198444796,31.97858605,242.18,242.09,23.776884]
[1737198444797,35.02570245,242.18,242.09,23.776884]
[1737198444955,3.0471164,242.18,242.11,23.776884]
[1737198445271,3.0471164,242.18,242.13,31.97858605]
[1737198445447,3.0471164,242.18,242.17,31.97858605]
[1737198445652,3.0471164,242.18,242.15,31.97858605]
[1737198445846,3.0471164,242.18,242.17,31.97858605]
[1737198446074,3.0471164,242.18,242.17,55.75547005]
[1737198446379,0.063,242.26,242.2,20.0]
[1737198446681,0.063,242.26,242.25,55.75547005]
[1737198446881,0.063,242.26,242.25,56.37455354]
[1737198447174,0.063,242.26,242.25,55.75547005]
[1737198447389,0.063,242.26,242.21,31.97858605]
[1737198447751,0.063,242.26,242.17,31.97858605]
[1737198448090,0.063,242.26,242.19,31.97858605]
[1737198448250,0.063,242.26,242.22,23.776884]
[1737198448452,0.063,242.26,242.24,23.776884]
[1737198448669,0.063,242.26,242.19,31.97858605]
[1737198448872,0.063,242.26,242.17,31.97858605]
[1737198449180,20.0,242.24,242.15,31.97858605]
[1737198449358,31.97858605,242.23,242.15,31.97858605]
[1737198449574,0.063,242.26,242.25,20.0]
[1737198449896,31.97858605,242.45,242.25,84.57613956]
[1737198450069,31.97858605,242.45,242.36,31.97858605]
[1737198450383,31.97858605,242.56,242.43,31.97858605]
[1737198450561,31.97858605,242.54,242.43,31.97858605]
[1737198450765,31.97858605,242.52,242.43,31.97858605]
[1737198450983,31.97858605,242.52,242.41,31.97858605]
[1737198451181,31.97858605,242.54,242.43,31.97858605]
[1737198451789,31.97858605,242.5,242.39,31.97858605]
[1737198452657,31.97858605,242.52,242.41,31.97858605]
[1737198452890,31.97858605,242.52,242.44,23.776884]
[1737198453187,31.97858605,242.5,242.39,31.97858605]
[1737198453684,26.76954854,242.76,242.49,31.97858605]
[1737198453983,31.97858605,242.59,242.49,31.97858605]
[1737198454184,31.97858605,242.57,242.45,31.97858605]
[1737198454488,31.97858605,242.55,242.43,31.97858605]
[1737198454676,31.97858605,242.51,242.41,31.97858605]
[1737198454873,31.97858605,242.49,242.39,31.97858605]
[1737198455079,31.97858605,242.45,242.34,31.97858605]
[1737198455284,31.97858605,242.43,242.32,31.97858605]
[1737198455479,31.97858605,242.42,242.29,31.97858605]
[1737198455771,31.97858605,242.42,242.31,31.97858605]
[1737198456376,31.97858605,242.42,242.32,23.776884]
[1737198456699,36.10368605,242.42,242.32,23.776884]
[1737198456989,4.1251,242.42,242.33,31.97858605]
[1737198457187,31.97858605,242.6,242.47,20.0]
[1737198457393,31.97858605,242.62,242.5,31.97858605]
[1737198457683,31.97858605,242.57,242.47,20.0]
[1737198458194,4.1211,242.65,242.48,31.97858605]
[1737198458369,31.97858605,242.57,242.46,31.97858605]
[1737198458572,31.97858605,242.55,242.44,31.97858605]
[1737198458773,31.97858605,242.52,242.42,23.776884]
[1737198458973,31.97858605,242.5,242.39,31.97858605]
[1737198459490,31.97858605,242.52,242.42,23.776884]
[1737198459862,31.97858605,242.5,242.39,31.97858605]
[1737198460190,31.97858605,242.44,242.33,31.97858605]
[1737198460572,31.97858605,242.38,242.27,31.97858605]
[1737198460774,14.4371,242.43,242.29,31.97858605]
[1737198460973,31.97858605,242.4,242.29,31.97858605]
[1737198461399,31.97858605,242.38,242.27,31.97858605]
[1737198461707,31.97858605,242.4,242.29,31.97858605]
[1737198461864,31.97858605,242.36,242.27,31.97858605]
[1737198462071,31.97858605,242.32,242.22,31.97858605]
[1737198462367,20.0,242.29,242.28,0.03]
[1737198462692,51.97858605,242.29,242.28,0.03]
[1737198462870,83.9571721,242.29,242.1,31.97858605]
[1737198463070,31.97858605,242.21,242.1,31.97858605]
[1737198463370,31.97858605,242.17,242.06,31.97858605]
[1737198463574,31.97858605,242.15,242.04,31.97858605]
[1737198463779,31.97858605,242.11,242.02,31.97858605]
[1737198463984,31.97858605,242.08,241.98,36.11108605]
[1737198464494,31.97858605,242.1,242.03,20.0]
[1737198464877,31.97858605,242.1,242.0,31.97858605]
[1737198465200,31.97858605,242.05,241.98,0.61960949]
[1737198465379,31.97858605,241.99,241.9,4.1338]
[1737198465582,31.97858605,241.99,241.88,36.11278605]
[1737198465884,31.97858605,241.99,241.88,31.97858605]
[1737198466089,31.97858605,241.97,241.86,31.97858605]
[1737198466399,31.97858605,241.97,241.87,23.776884]
[1737198466701,31.97858605,241.97,241.89,20.0]
[1737198467005,31.97858605,241.95,241.86,31.97858605]
[1737198467207,31.97858605,241.95,241.86,36.11308605]
[1737198467405,31.97858605,241.93,241.84,36.11338605]
[1737198467600,31.97858605,241.93,241.82,36.11378605]
[1737198467806,31.97858605,241.93,241.85,20.0]
[1737198468103,31.97858605,241.91,241.82,36.11378605]
[1737198468327,31.97858605,241.89,241.82,4.1352]
[1737198468799,31.97858605,241.89,241.81,31.97858605]
[1737198469011,31.97858605,241.85,241.78,0.03]
[1737198469303,31.97858605,241.83,241.78,0.03]
[1737198469683,31.97858605,241.81,241.78,0.03]
[1737198471080,31.97858605,241.85,241.78,20.03]
[1737198471279,31.97858605,241.83,241.78,20.03]
[1737198471493,31.97858605,241.85,241.78,20.03]
[1737198471777,31.97858605,241.85,241.78,0.03]
[1737198471998,31.97858605,241.83,241.78,0.03]
[1737198472401,31.97858605,241.81,241.78,0.03]
[1737198472580,31.97858605,241.85,241.78,0.03]
[1737198472994,31.97858605,241.83,241.78,0.03]
[1737198473313,31.97858605,241.85,241.78,0.03]
[1737198473606,31.97858605,241.81,241.78,0.03]
[1737198473988,31.97858605,241.79,241.78,0.03]
[1737198475122,31.97858605,241.83,241.78,0.03]
[1737198476207,31.97858605,241.92,241.79,23.776884]
[1737198476208,31.97858605,241.85,241.79,23.776884]
[1737198476721,31.97858605,241.83,241.78,0.03]
[1737198477225,31.97858605,241.81,241.78,0.03]
[1737198478119,31.97858605,241.83,241.78,0.03]
[1737198479089,31.97858605,241.81,241.78,0.03]
[1737198480131,31.97858605,241.83,241.78,0.03]
[1737198480308,31.97858605,241.85,241.78,23.806884]
[1737198480705,31.97858605,241.83,241.78,0.03]
[1737198481937,31.97858605,241.88,241.78,59.92137005]
[1737198482232,31.97858605,241.84,241.78,4.1659]
[1737198482913,31.97858605,241.84,241.78,27.942784]
[1737198483115,31.97858605,241.86,241.79,23.776884]
[1737198483299,31.97858605,241.9,241.83,20.0]
[1737198483509,31.97858605,241.92,241.84,31.97858605]
[1737198483711,31.97858605,241.86,241.78,4.1659]
[1737198484235,31.97858605,241.86,241.8,20.0]
[1737198484444,31.97858605,241.88,241.81,23.776884]
[1737198484646,31.97858605,241.86,241.78,14.5058]
[1737198484819,31.97858605,241.86,241.81,20.0]
[1737198485017,31.97858605,241.88,241.82,20.0]
[1737198485544,31.97858605,241.84,241.78,0.03]
[1737198485866,31.97858605,241.8,241.78,0.03]
[1737198486339,31.97858605,241.82,241.78,0.03]
[1737198486513,31.97858605,241.87,241.8,55.75547005]
[1737198486837,31.97858605,241.89,241.84,23.776884]
[1737198487014,31.97858605,241.89,241.85,0.03]
[1737198487553,31.97858605,241.93,241.87,20.0]
[1737198487725,31.97858605,241.89,241.85,0.03]
[1737198487927,31.97858605,241.87,241.85,0.03]
[1737198488650,31.97858605,241.89,241.85,0.03]
[1737198488947,31.97858605,241.87,241.85,0.03]
[1737198489646,20.0,241.83,241.78,0.03]
[1737198489857,31.97858605,241.79,241.78,0.03]
[1737198490242,31.97858605,241.79,241.74,4.1366]
[1737198490427,31.97858605,241.79,241.7,23.776884]
[1737198490638,31.97858605,241.81,241.71,31.97858605]
[1737198490832,31.97858605,241.81,241.76,20.03]
[1737198491556,31.97858605,241.85,241.78,20.0]
[1737198491860,31.97858605,241.81,241.76,0.03]
[1737198492018,31.97858605,241.83,241.77,20.0]
[1737198492219,31.97858605,241.85,241.82,20.0]
[1737198492454,31.97858605,241.83,241.76,0.03]
[1737198492745,31.97858605,241.85,241.76,0.03]
[1737198492952,31.97858605,241.87,241.82,20.0]
[1737198493142,31.97858605,241.89,241.82,20.0]
[1737198493353,31.97858605,241.87,241.82,20.0]
[1737198493665,36.10558605,242.04,241.86,20.0]
[1737198493828,31.97858605,241.9,241.86,20.0]
[1737198494152,31.97858605,241.88,241.78,31.97858605]
[1737198494322,31.97858605,241.85,241.79,23.776884]
[1737198494731,31.97858605,241.85,241.8,4.1356]
[1737198495348,31.97858605,241.89,241.83,20.0]
[1737198495537,31.97858605,241.87,241.8,4.1356]
[1737198496139,31.97858605,241.87,241.81,20.0]
[1737198496325,31.97858605,241.85,241.81,20.0]
[1737198496528,31.97858605,241.85,241.82,4.1353]
[1737198497174,31.97858605,241.87,241.83,23.776884]
[1737198497448,20.6585,242.03,241.83,23.776884]
[1737198497449,48.51089105,241.93,241.84,31.97858605]
[1737198497655,16.532305,241.93,241.85,23.776884]
[1737198497857,31.97858605,241.91,241.85,23.776884]
[1737198498239,31.97858605,241.91,241.85,43.776884]
[1737198498442,31.97858605,241.87,241.82,4.1353]
[1737198498623,31.97858605,241.89,241.83,20.0]
[1737198498829,31.97858605,241.89,241.82,36.11388605]
[1737198499045,31.97858605,241.9,241.85,20.0]
[1737198499256,31.97858605,241.86,241.82,4.1353]
[1737198499459,31.97858605,241.88,241.82,4.1353]
[1737198499654,31.97858605,241.84,241.74,31.97858605]
[1737198499830,31.97858605,241.8,241.7,31.97858605]
[1737198500459,31.97858605,241.8,241.71,23.776884]
[1737198500643,31.97858605,241.8,241.73,20.0]
[1737198501361,31.97858605,241.8,241.71,4.1371]
[1737198503145,31.97858605,241.8,241.75,23.776884]
[1737198503341,31.97858605,241.82,241.75,23.776884]
[1737198503964,31.97858605,241.8,241.75,20.0]
[1737198504261,31.97858605,241.78,241.75,20.0]
[1737198504439,31.97858605,241.78,241.71,23.776884]
[1737198504768,31.97858605,241.78,241.74,43.776884]
[1737198505072,31.97858605,241.8,241.75,4.1365]
[1737198506450,31.97858605,241.78,241.74,20.0]
[1737198507068,31.97858605,241.78,241.74,24.1366]
[1737198507267,3.06301635,241.77,241.74,24.1366]
[1737198507639,18.67368365,241.78,241.74,4.1366]
[1737198507967,3.07168466,241.77,241.73,24.1368]
[1737198508972,4.127,241.98,241.79,20.0]
[1737198509265,4.1317,242.03,241.95,31.97858605]
[1737198509266,31.97858605,242.03,241.95,31.97858605]
[1737198509558,31.97858605,242.0,241.9,31.97858605]
[1737198509763,31.97858605,242.0,241.94,23.776884]
[1737198510063,31.97858605,242.0,241.95,4.133]
[1737198510260,31.97858605,242.04,241.99,20.0]
[1737198510651,31.97858605,242.04,241.96,31.97858605]
[1737198510652,31.97858605,242.0,241.95,4.133]
[1737198511047,31.97858605,242.04,241.96,43.776884]
[1737198511654,31.97858605,242.02,241.97,20.0]
[1737198511958,31.97858605,242.06,241.99,20.0]
[1737198512162,31.97858605,242.06,241.98,36.11108605]
[1737198512365,31.97858605,242.06,241.99,23.776884]
[1737198512850,0.063,242.0,241.99,23.776884]
[1737198513047,31.97858605,242.12,242.06,20.0]
[1737198513251,31.97858605,242.12,242.03,23.776884]
[1737198513252,31.97858605,242.16,242.09,20.0]
[1737198513459,38.21433459,242.28,242.12,23.776884]
[1737198513460,31.97858605,242.18,242.12,23.776884]
[1737198513665,31.97858605,242.2,242.12,23.776884]
[1737198513864,16.518219,242.16,242.15,43.776884]
[1737198514048,32.04158605,242.28,242.15,47.906484]
[1737198514049,31.97858605,242.24,242.15,47.906484]
[1737198514244,31.97858605,242.26,242.18,31.97858605]
[1737198514446,0.063,242.28,242.23,20.0]
[1737198515062,31.97858605,242.25,242.16,31.97858605]
[1737198515372,31.97858605,242.21,242.13,4.1299]
[1737198515576,31.97858605,242.21,242.11,4.1302]
[1737198515873,36.16908605,242.28,242.03,31.97858605]
[1737198515874,31.97858605,242.13,242.03,31.97858605]
[1737198516065,46.48768605,242.28,242.01,31.97858605]
[1737198516066,31.97858605,242.09,242.01,31.97858605]
[1737198516361,6.0377,242.25,242.05,31.97858605]
[1737198516362,31.97858605,242.13,242.05,31.97858605]
[1737198516569,31.97858605,242.13,242.08,20.0]
[1737198516756,31.97858605,242.15,242.08,20.0]
[1737198516970,31.97858605,242.13,242.08,20.0]
[1737198517265,31.97858605,242.13,242.04,31.97858605]
[1737198517465,31.97858605,242.13,241.95,10.3323]
[1737198517466,31.97858605,242.15,242.09,20.0]
[1737198517775,31.97858605,242.17,242.09,20.0]
[1737198518073,31.97858605,242.17,242.1,4.1305]
[1737198518389,31.97858605,242.17,242.11,20.0]
[1737198518880,31.97858605,242.17,242.1,4.1305]
[1737198519055,31.97858605,242.17,242.11,20.0]
[1737198519371,31.97858605,242.19,242.13,20.0]
[1737198519677,31.97858605,242.16,242.06,36.10978605]
[1737198519973,31.97858605,242.14,242.07,20.0]
[1737198520753,31.97858605,242.14,242.06,56.10978605]
[1737198521377,31.97858605,242.14,242.07,20.0]
[1737198521560,31.97858605,242.16,242.08,31.97858605]
[1737198521746,31.97858605,242.18,242.08,31.97858605]
[1737198522552,31.97858605,242.16,242.06,36.10978605]
[1737198523157,31.97858605,242.16,242.09,20.0]
[1737198523683,31.97858605,242.11,241.99,31.97858605]
[1737198523849,31.97858605,242.08,241.99,31.97858605]
[1737198524172,31.97858605,242.08,241.99,36.11098605]
[1737198524977,31.97858605,242.08,241.99,36.73065529]
[1737198525284,31.97858605,242.06,241.99,36.11098605]
[1737198525582,16.582317,242.14,242.02,20.0]
[1737198525583,31.97858605,242.08,242.02,20.0]
[1737198527087,31.97858605,242.08,242.03,24.1317]
[1737198527260,31.97858605,242.06,242.03,20.0]
[1737198527575,31.97858605,242.04,241.94,0.03]
[1737198527768,31.97858605,241.96,241.94,0.03]
[1737198528870,36.11158605,241.96,241.94,0.03]
[1737198529778,31.97858605,241.96,241.94,0.03]
[1737198531060,29.82658385,241.96,241.94,0.03]
[1737198531277,14.455,242.13,241.94,0.03]
[1737198531585,31.97858605,242.02,241.94,0.03]
[1737198531882,31.97858605,241.98,241.94,0.03]
[1737198534487,31.97858605,241.96,241.94,0.03]
[1737198534691,31.97858605,241.98,241.94,0.03]
[1737198537091,31.97858605,241.96,241.94,0.03]
[1737198539078,4.133,241.95,241.94,0.03]
[1737198540383,27.909884,241.95,241.94,0.03]
[1737198540584,59.88847005,241.95,241.94,0.0001]
[1737198540963,4.133,241.95,241.94,0.0001]
[1737198541369,60.35604012,241.95,241.94,0.0001]
[1737198541573,36.22304012,241.95,241.94,0.0001]
[1737198542179,19.68954012,241.97,241.94,0.0001]
[1737198542380,19.68954012,241.99,241.94,0.0001]
[1737198542885,19.68954012,241.97,241.94,0.0001]
[1737198543291,19.68954012,241.99,241.94,0.0001]
[1737198543770,19.68954012,242.03,241.94,19.68964012]
[1737198543976,19.68954012,242.05,241.98,23.776884]
[1737198544175,19.68954012,242.03,241.94,19.68964012]
[1737198544383,19.68954012,242.0,241.94,0.0001]
[1737198544893,16.523135,242.06,241.94,0.0001]
[1737198544894,19.68954012,241.98,241.94,0.0001]
[1737198545495,19.68954012,242.04,241.94,0.0001]
[1737198545699,19.68954012,241.97,241.94,0.0001]
[1737198546397,19.68954012,241.95,241.94,0.0001]
[1737198548686,20.0,241.92,241.76,0.03]
[1737198548891,19.68954012,241.82,241.76,0.03]
[1737198549380,19.68954012,241.86,241.78,4.1658]
[1737198549897,19.68954012,241.84,241.78,0.03]
[1737198550081,19.68954012,241.8,241.78,0.03]
[1737198550395,23.82524012,241.8,241.78,0.03]
[1737198552187,19.68954012,241.8,241.78,0.03]
[1737198552383,19.68954012,241.84,241.81,20.0]
[1737198553487,19.68954012,241.86,241.81,20.0]
[1737198553794,19.68954012,241.86,241.81,24.1353]
[1737198553998,19.68954012,241.88,241.81,24.1353]
[1737198554400,19.68954012,241.84,241.81,20.0]
[1737198554582,19.68954012,241.86,241.81,20.0]
[1737198555178,19.68954012,241.88,241.81,20.0]
[1737198555587,19.68954012,241.88,241.81,24.1354]
[1737198556385,18.68954012,241.88,241.81,20.0]
[1737198556593,19.68954012,241.86,241.79,20.0]
[1737198556903,19.68954012,241.84,241.78,4.1659]
[1737198557698,19.68954012,241.92,241.78,4.1659]
[1737198557903,19.68954012,241.85,241.78,4.1659]
[1737198558808,19.68954012,241.83,241.78,0.03]
[1737198559602,4.1361,241.83,241.78,0.03]
[1737198560098,19.68954012,241.84,241.78,0.03]
[1737198561081,19.68954012,241.86,241.78,43.49642412]
[1737198561407,19.68954012,241.88,241.8,19.68954012]
[1737198561988,19.68954012,241.88,241.8,23.82494012]
[1737198562305,23.82374012,241.88,241.81,20.0]
[1737198562505,19.68954012,241.86,241.81,20.0]
[1737198562886,19.68954012,241.86,241.81,20.03]
[1737198563183,16.534266,241.88,241.82,43.46642412]
[1737198563390,19.68954012,241.88,241.81,0.03]
[1737198563602,19.68954012,241.86,241.81,0.03]
[1737198564509,19.68954012,241.86,241.81,20.03]
[1737198564809,19.68954012,241.9,241.86,20.0]
[1737198564996,19.68954012,241.94,241.85,19.68954012]
[1737198565200,19.68954012,241.92,241.83,19.68954012]
[1737198566115,19.68954012,241.92,241.86,20.0]
[1737198566485,19.68954012,241.9,241.81,19.71954012]
[1737198566693,19.68954012,241.9,241.81,23.85494012]
[1737198567215,19.68954012,241.92,241.83,19.68954012]
[1737198567516,19.68954012,241.92,241.86,20.0]
[1737198567684,19.68954012,241.94,241.88,20.0]
[1737198568823,19.68954012,241.98,241.9,23.776884]
[1737198569114,0.063,242.08,241.94,20.0]
[1737198569115,16.525977,242.01,241.94,20.0]
[1737198569283,16.525977,242.01,241.95,44.08619852]
[1737198569482,16.525977,242.01,242.0,19.68954012]
[1737198569692,0.063,242.08,242.03,20.0]
[1737198569913,19.75254012,242.08,241.99,19.68954012]
[1737198570098,19.68954012,242.06,241.95,19.68954012]
[1737198570303,19.68954012,242.06,241.98,20.0]
[1737198570497,19.68954012,242.04,241.95,19.68954012]
[1737198570680,19.68954012,242.02,241.93,20.30905637]
[1737198571116,19.68954012,242.04,241.96,20.0]
[1737198571510,19.68954012,242.06,241.96,23.776884]
[1737198572083,19.68954012,242.06,242.0,20.0]
[1737198572311,19.68954012,242.04,241.95,19.68954012]
[1737198572488,19.68954012,242.0,241.96,12.89]
[1737198572693,19.68954012,241.98,241.96,12.89]
[1737198572888,19.68954012,241.98,241.92,20.0]
[1737198573204,19.68954012,241.94,241.83,25.89614012]
[1737198573427,19.68954012,241.92,241.86,20.0]
[1737198573601,19.68954012,241.92,241.83,25.89614012]
[1737198574318,19.68954012,241.98,241.89,19.68954012]
[1737198574497,19.68954012,241.96,241.9,20.0]
[1737198574913,19.68954012,241.96,241.85,19.68954012]
[1737198575198,19.68954012,241.96,241.86,12.89]
[1737198576007,19.68954012,241.96,241.88,20.0]
[1737198576921,19.68954012,241.98,241.9,20.0]
[1737198577119,19.68954012,241.98,241.9,4.1338]
[1737198577534,19.68954012,242.0,241.92,20.0]
[1737198577832,19.68954012,242.04,241.96,19.68954012]
[1737198578196,19.75254012,242.08,241.98,19.68954012]
[1737198578628,19.68954012,242.06,241.96,19.68954012]
[1737198578926,19.68954012,242.06,241.99,20.0]
[1737198579132,19.68954012,242.04,241.97,4.1327]
[1737198580521,19.68954012,242.06,241.97,4.1327]
[1737198580727,19.68954012,242.06,241.98,19.68954012]
[1737198582024,19.68954012,242.06,241.99,0.61]
[1737198582230,0.063,242.08,242.03,23.776884]
[1737198582525,0.063,242.08,242.04,19.68954012]
[1737198583027,0.063,242.08,242.05,20.0]
[1737198584003,0.063,242.08,242.06,44.0859921]
[1737198585319,0.063,242.08,242.06,43.46642412]
[1737198587432,0.063,242.08,242.04,39.68954012]
[1737198587604,0.063,242.08,242.05,23.776884]
[1737198588439,0.063,242.08,242.06,0.61]
[1737198588622,0.063,242.08,242.07,43.776884]
[1737198588830,0.063,242.08,242.07,44.39638194]
[1737198589532,0.063,242.08,242.07,45.00638194]
[1737198590217,0.0001,242.08,242.07,45.00638194]
[1737198590811,0.0001,242.08,242.07,0.61]
[1737198591511,0.0001,242.08,242.07,20.61]
[1737198592629,19.68964012,242.08,242.07,0.61]
[1737198593021,19.68964012,242.08,242.02,20.0]
[1737198593235,19.68964012,242.08,242.04,20.0]
[1737198593529,0.0001,242.08,242.01,19.71954012]
[1737198595544,0.0001,242.08,242.06,20.0]
[1737198596240,0.0001,242.08,242.04,20.0]
[1737198596614,19.68954012,242.11,242.04,20.0]
[1737198597337,19.68954012,242.11,242.06,20.0]
[1737198597528,19.68954012,242.09,242.02,4.1318]
[1737198597928,19.68954012,242.15,242.08,20.0]
[1737198598136,19.68954012,242.17,242.08,39.68954012]
[1737198598443,19.68954012,242.17,242.09,30.9306804]
[1737198598642,19.68954012,242.17,242.13,48.16527228]
[1737198598841,19.68954012,242.18,242.13,48.16527228]
[1737198599051,19.68954012,242.22,242.14,23.776884]
[1737198599241,0.063,242.28,242.16,23.776884]
[1737198599423,0.063,242.28,242.17,6.37602486]
[1737198599424,19.68954012,242.26,242.17,6.37602486]
[1737198599624,19.68954012,242.26,242.18,4.1291]
[1737198600436,19.68954012,242.24,242.18,137.3]
[1737198601227,19.68954012,242.26,242.18,137.3]
[1737198601939,19.68954012,242.26,242.19,4.1289]
[1737198602142,19.68954012,242.22,242.13,205.1548124]
[1737198602326,19.68954012,242.24,242.15,19.68954012]
[1737198603231,19.68954012,242.19,242.13,48.16527228]
[1737198603426,19.68954012,242.17,242.13,48.16527228]
[1737198603741,19.68954012,242.15,242.13,48.16527228]
[1737198603941,4.1298,242.14,242.13,22.38343256]
[1737198604242,4.1298,242.14,242.13,17.30445606]
[1737198604727,20.0,242.12,242.08,60.20659035]
[1737198605045,19.68954012,242.09,242.08,60.20659035]
[1737198606132,6.4055,242.15,242.08,60.20659035]
[1737198606133,19.68954012,242.13,242.08,60.20659035]
[1737198607330,19.68954012,242.1,242.08,60.20659035]
[1737198608342,23.82014012,242.1,242.08,60.20659035]
[1737198609138,23.82014012,242.1,242.08,46.16858448]
[1737198610849,23.82014012,242.1,242.01,0.03]
[1737198611050,4.1306,242.1,242.08,0.03]
[1737198611836,19.68954012,242.09,242.08,0.03]
[1737198612240,19.68954012,242.11,242.08,0.03]
[1737198612550,19.68954012,242.13,242.08,0.03]
[1737198612743,19.68954012,242.15,242.08,0.03]
[1737198614159,19.68954012,242.09,242.08,0.03]
[1737198616255,23.82014012,242.09,242.08,0.03]
[1737198617248,23.776884,241.98,241.83,0.03]
[1737198617446,19.68954012,241.9,241.83,0.03]
[1737198617654,19.68954012,241.9,241.83,4.165]
[1737198618145,19.68954012,242.0,241.89,19.68954012]
[1737198618351,19.68954012,241.98,241.89,19.68954012]
[1737198618660,19.68954012,242.02,241.93,19.68954012]
[1737198618859,19.68954012,242.0,241.91,19.68954012]
[1737198619161,19.68954012,241.98,241.9,4.1339]
[1737198619452,19.68954012,241.98,241.91,19.68954012]
[1737198620346,19.68954012,242.0,241.91,23.82314012]
[1737198621046,4.1316,242.04,241.91,23.82314012]
[1737198621047,19.68954012,242.04,241.95,19.68954012]
[1737198621231,19.68954012,242.02,241.95,19.68954012]
[1737198621432,19.68954012,242.02,241.96,20.0]
[1737198622762,19.68954012,242.02,241.96,24.1327]
[1737198622934,19.68954012,242.06,241.97,19.68954012]
[1737198623135,19.68954012,242.1,242.01,39.68954012]
[1737198623437,19.68954012,242.08,242.01,20.0]
[1737198623746,19.68954012,242.06,241.97,19.68954012]
[1737198625047,19.68954012,242.06,241.98,4.1325]
[1737198626543,23.82074012,242.06,241.98,4.1325]
[1737198627042,19.68954012,242.0,241.96,0.03]
[1737198627361,19.68954012,241.98,241.96,0.03]
[1737198627968,19.68954012,241.98,241.69,415.20602486]
[1737198627969,36.146884,241.84,241.69,0.03]
[1737198628142,19.68954012,241.7,241.69,0.03]
[1737198628532,19.68954012,241.72,241.69,0.03]
[1737198628748,19.68954012,241.79,241.69,23.85694012]
[1737198628941,19.68954012,241.86,241.8,20.0]
[1737198629163,6.40477163,241.88,241.86,20.0]
[1737198629462,26.09431175,241.88,241.71,6.1423]
[1737198629756,19.68954012,241.8,241.71,6.1423]
[1737198630139,19.68954012,241.8,241.75,20.0]
[1737198630339,23.776884,241.9,241.75,20.0]
[1737198630566,19.68954012,241.8,241.75,20.0]
[1737198630875,19.68954012,241.76,241.67,104.09664012]
[1737198631039,19.68954012,241.76,241.69,4.1674]
[1737198631241,19.68954012,241.76,241.7,20.0]
[1737198631657,19.68954012,241.72,241.69,0.03]
[1737198632862,19.68954012,241.77,241.69,23.806884]
[1737198633066,19.68954012,241.79,241.71,20.0]
[1737198633963,19.68954012,241.76,241.71,20.0]